Workbook

Sheet Sheet1
A1: Time Stamp | B1: T1 | C1: T2 | D1: Pr | G1: Date | H1: T1 | I1: T2
A2: 2011.12.25.00.00.04 | B2: 294 | C2: 293.8 | D2: 0.52 | G2: =[1]Sheet1!G2+1 -> 2011-12-25 | H2: =AVERAGE(B2:B101) -> 293.922 | I2: =AVERAGE(C2:C101) -> 293.786
A3: 2011.12.25.00.00.40 | B3: 293.9 | C3: 293.8 | D3: 0.52 | G3: =[1]Sheet1!G3+1 -> 2011-12-25T01:00:00 | H3: =AVERAGE(B102:B201) -> 293.876 | I3: =AVERAGE(C102:C201) -> 293.713
A4: 2011.12.25.00.01.16 | B4: 293.9 | C4: 293.8 | D4: 0.52 | G4: =[1]Sheet1!G4+1 -> 2011-12-25T02:00:00 | H4: =AVERAGE(B202:B300) -> 293.7707071 | I4: =AVERAGE(C202:C300) -> 293.620202
A5: 2011.12.25.00.01.52 | B5: 294 | C5: 293.8 | D5: 0.52 | G5: =[1]Sheet1!G5+1 -> 2011-12-25T03:00:00 | H5: =AVERAGE(B301:B400) -> 293.712 | I5: =AVERAGE(C301:C400) -> 293.563
A6: 2011.12.25.00.02.28 | B6: 293.9 | C6: 293.9 | D6: 0.51 | G6: =[1]Sheet1!G6+1 -> 2011-12-25T04:00:00 | H6: =AVERAGE(B401:B500) -> 293.6575758 | I6: =AVERAGE(C401:C500) -> 293.495
A7: 2011.12.25.00.03.04 | B7: 294 | C7: 293.9 | D7: 0.52 | G7: =[1]Sheet1!G7+1 -> 2011-12-25T05:00:00 | H7: =AVERAGE(B501:B600) -> 293.568 | I7: =AVERAGE(C501:C600) -> 293.398
A8: 2011.12.25.00.03.40 | B8: 293.9 | C8: 293.7 | D8: 0.52 | G8: =[1]Sheet1!G8+1 -> 2011-12-25T06:00:00 | H8: =AVERAGE(B601:B700) -> 293.53 | I8: =AVERAGE(C601:C700) -> 293.352
A9: 2011.12.25.00.04.16 | B9: 294 | C9: 293.8 | D9: 0.52 | G9: =[1]Sheet1!G9+1 -> 2011-12-25T07:00:00 | H9: =AVERAGE(B701:B800) -> 293.482 | I9: =AVERAGE(C701:C800) -> 293.311
A10: 2011.12.25.00.04.52 | B10: 293.9 | C10: 293.8 | D10: 0.52 | G10: =[1]Sheet1!G10+1 -> 2011-12-25T08:00:00 | H10: =AVERAGE(B801:B900) -> 293.4121212 | I10: =AVERAGE(C801:C900) -> 293.235
A11: 2011.12.25.00.05.28 | B11: 293.9 | C11: 293.9 | D11: 0.52 | G11: =[1]Sheet1!G11+1 -> 2011-12-25T09:00:00 | H11: =AVERAGE(B901:B1000) -> 293.386 | I11: =AVERAGE(C901:C1000) -> 293.204
A12: 2011.12.25.00.06.05 | B12: 294 | C12: 293.8 | D12: 0.52 | G12: =[1]Sheet1!G12+1 -> 2011-12-25T10:00:00 | H12: =AVERAGE(B1001:B1100) -> 293.405 | I12: =AVERAGE(C1001:C1100) -> 293.225
A13: 2011.12.25.00.06.41 | B13: 293.9 | C13: 293.9 | D13: 0.51 | G13: =[1]Sheet1!G13+1 -> 2011-12-25T11:00:00 | H13: =AVERAGE(B1101:B1200) -> 293.517 | I13: =AVERAGE(C1101:C1200) -> 293.365
A14: 2011.12.25.00.07.17 | B14: 293.9 | C14: 293.8 | D14: 0.52 | G14: =[1]Sheet1!G14+1 -> 2011-12-25T12:00:00 | H14: =AVERAGE(B1201:B1300) -> 293.621 | I14: =AVERAGE(C1201:C1300) -> 293.481
A15: 2011.12.25.00.07.53 | B15: 293.9 | C15: 293.8 | D15: 0.51 | G15: =[1]Sheet1!G15+1 -> 2011-12-25T13:00:00 | H15: =AVERAGE(B1301:B1400) -> 293.7606061 | I15: =AVERAGE(C1301:C1400) -> 293.664
A16: 2011.12.25.00.08.29 | B16: 294 | C16: 293.8 | D16: 0.52 | G16: =[1]Sheet1!G16+1 -> 2011-12-25T14:00:00 | H16: =AVERAGE(B1401:B1500) -> 293.892 | I16: =AVERAGE(C1401:C1500) -> 293.7828283
A17: 2011.12.25.00.09.05 | B17: 294.1 | C17: 293.8 | D17: 0.52 | G17: =[1]Sheet1!G17+1 -> 2011-12-25T15:00:00 | H17: =AVERAGE(B1501:B1600) -> 293.915 | I17: =AVERAGE(C1501:C1600) -> 293.793
A18: 2011.12.25.00.09.41 | B18: 293.9 | C18: 293.8 | D18: 0.51 | G18: =[1]Sheet1!G18+1 -> 2011-12-25T16:00:00 | H18: =AVERAGE(B1601:B1700) -> 293.929 | I18: =AVERAGE(C1601:C1700) -> 293.809
A19: 2011.12.25.00.10.17 | B19: 294 | C19: 293.8 | D19: 0.52 | G19: =[1]Sheet1!G19+1 -> 2011-12-25T17:00:00 | H19: =AVERAGE(B1701:B1800) -> 293.924 | I19: =AVERAGE(C1701:C1800) -> 293.802
A20: 2011.12.25.00.10.53 | B20: 293.9 | C20: 293.8 | D20: 0.52 | G20: =[1]Sheet1!G20+1 -> 2011-12-25T18:00:00 | H20: =AVERAGE(B1801:B1900) -> 293.9535354 | I20: =AVERAGE(C1801:C1900) -> 293.826
A21: 2011.12.25.00.11.29 | B21: 293.9 | C21: 293.8 | D21: 0.52 | G21: =[1]Sheet1!G21+1 -> 2011-12-25T19:00:00 | H21: =AVERAGE(B1901:B2000) -> 293.998 | I21: =AVERAGE(C1901:C2000) -> 293.868
A22: 2011.12.25.00.12.05 | B22: 293.9 | C22: 293.8 | D22: 0.52 | G22: =[1]Sheet1!G22+1 -> 2011-12-25T20:00:00 | H22: =AVERAGE(B2001:B2100) -> 294.032 | I22: =AVERAGE(C2001:C2100) -> 293.898
A23: 2011.12.25.00.12.41 | B23: 293.9 | C23: 293.8 | D23: 0.51 | G23: =[1]Sheet1!G23+1 -> 2011-12-25T21:00:00 | H23: =AVERAGE(B2101:B2200) -> 294.0714286 | I23: =AVERAGE(C2101:C2200) -> 293.901
A24: 2011.12.25.00.13.17 | B24: 294 | C24: 293.7 | D24: 0.52 | G24: =[1]Sheet1!G24+1 -> 2011-12-25T22:00:00 | H24: =AVERAGE(B2201:B2300) -> 294.041 | I24: =AVERAGE(C2201:C2300) -> 293.887
A25: 2011.12.25.00.13.53 | B25: 294 | C25: 293.8 | D25: 0.52 | G25: =[1]Sheet1!G25+1 -> 2011-12-25T23:00:00 | H25: =AVERAGE(B2301:B2400) -> 294.009 | I25: =AVERAGE(C2301:C2400) -> 293.875
A26: 2011.12.25.00.14.29 | B26: 293.9 | C26: 293.7 | D26: 0.51
A27: 2011.12.25.00.15.05 | B27: 293.9 | C27: 293.8 | D27: 0.52
A28: 2011.12.25.00.15.41 | B28: 294 | C28: 293.8 | D28: 0.52
A29: 2011.12.25.00.16.17 | B29: 293.9 | C29: 293.8 | D29: 0.52
A30: 2011.12.25.00.16.53 | B30: 294 | C30: 293.8 | D30: 0.52
A31: 2011.12.25.00.17.29 | B31: 293.9 | C31: 293.8 | D31: 0.51
A32: 2011.12.25.00.18.05 | B32: 294 | C32: 293.8 | D32: 0.51
A33: 2011.12.25.00.18.41 | B33: 294 | C33: 293.8 | D33: 0.52
A34: 2011.12.25.00.19.17 | B34: 293.9 | C34: 293.8 | D34: 0.52
A35: 2011.12.25.00.19.53 | B35: 293.9 | C35: 293.8 | D35: 0.52
A36: 2011.12.25.00.20.29 | B36: 293.9 | C36: 293.8 | D36: 0.52
A37: 2011.12.25.00.21.05 | B37: 293.9 | C37: 293.8 | D37: 0.52
A38: 2011.12.25.00.21.41 | B38: 293.9 | C38: 293.8 | D38: 0.52
A39: 2011.12.25.00.22.17 | B39: 293.9 | C39: 293.8 | D39: 0.52
A40: 2011.12.25.00.22.53 | B40: 293.9 | C40: 293.6 | D40: 0.52
A41: 2011.12.25.00.23.29 | B41: 293.9 | C41: 293.8 | D41: 0.51
A42: 2011.12.25.00.24.05 | B42: 293.9 | C42: 293.8 | D42: 0.52
A43: 2011.12.25.00.24.41 | B43: 294 | C43: 293.8 | D43: 0.51
A44: 2011.12.25.00.25.17 | B44: 293.9 | C44: 293.8 | D44: 0.51
A45: 2011.12.25.00.25.53 | B45: 293.9 | C45: 293.8 | D45: 0.52
A46: 2011.12.25.00.26.29 | B46: 293.9 | C46: 293.8 | D46: 0.51
A47: 2011.12.25.00.27.05 | B47: 293.9 | C47: 293.8 | D47: 0.51
A48: 2011.12.25.00.27.41 | B48: 293.9 | C48: 293.7 | D48: 0.51
A49: 2011.12.25.00.28.17 | B49: 294 | C49: 293.8 | D49: 0.51
A50: 2011.12.25.00.28.53 | B50: 294 | C50: 293.8 | D50: 0.51
A51: 2011.12.25.00.29.29 | B51: 293.9 | C51: 293.8 | D51: 0.51
A52: 2011.12.25.00.30.05 | B52: 293.9 | C52: 293.8 | D52: 0.51
A53: 2011.12.25.00.30.41 | B53: 293.9 | C53: 293.8 | D53: 0.51
A54: 2011.12.25.00.31.17 | B54: 294 | C54: 293.8 | D54: 0.51
A55: 2011.12.25.00.31.53 | B55: 293.9 | C55: 293.8 | D55: 0.52
A56: 2011.12.25.00.32.29 | B56: 293.9 | C56: 293.7 | D56: 0.52
A57: 2011.12.25.00.33.05 | B57: 293.9 | C57: 293.8 | D57: 0.51
A58: 2011.12.25.00.33.41 | B58: 293.9 | C58: 293.8 | D58: 0.51
A59: 2011.12.25.00.34.17 | B59: 293.9 | C59: 293.8 | D59: 0.51
A60: 2011.12.25.00.34.53 | B60: 293.9 | C60: 293.8 | D60: 0.51
A61: 2011.12.25.00.35.29 | B61: 293.9 | C61: 293.8 | D61: 0.52
A62: 2011.12.25.00.36.05 | B62: 293.9 | C62: 293.8 | D62: 0.52
A63: 2011.12.25.00.36.41 | B63: 293.9 | C63: 293.8 | D63: 0.51
A64: 2011.12.25.00.37.17 | B64: 293.9 | C64: 293.9 | D64: 0.52
A65: 2011.12.25.00.37.53 | B65: 294 | C65: 293.8 | D65: 0.51
A66: 2011.12.25.00.38.29 | B66: 293.9 | C66: 293.8 | D66: 0.52
A67: 2011.12.25.00.39.05 | B67: 293.9 | C67: 293.8 | D67: 0.51
A68: 2011.12.25.00.39.41 | B68: 293.9 | C68: 293.7 | D68: 0.52
A69: 2011.12.25.00.40.17 | B69: 293.9 | C69: 293.8 | D69: 0.51
A70: 2011.12.25.00.40.53 | B70: 293.9 | C70: 293.8 | D70: 0.51
A71: 2011.12.25.00.41.29 | B71: 293.9 | C71: 293.8 | D71: 0.51
A72: 2011.12.25.00.42.05 | B72: 293.9 | C72: 293.7 | D72: 0.51
A73: 2011.12.25.00.42.41 | B73: 294 | C73: 293.8 | D73: 0.51
A74: 2011.12.25.00.43.17 | B74: 293.9 | C74: 293.7 | D74: 0.51
A75: 2011.12.25.00.43.53 | B75: 293.9 | C75: 293.7 | D75: 0.51
A76: 2011.12.25.00.44.29 | B76: 293.9 | C76: 293.8 | D76: 0.51
A77: 2011.12.25.00.45.05 | B77: 293.9 | C77: 293.6 | D77: 0.51
A78: 2011.12.25.00.45.41 | B78: 293.9 | C78: 293.7 | D78: 0.51
A79: 2011.12.25.00.46.17 | B79: 293.9 | C79: 293.8 | D79: 0.51
A80: 2011.12.25.00.46.53 | B80: 293.9 | C80: 293.8 | D80: 0.51
A81: 2011.12.25.00.47.29 | B81: 294 | C81: 293.8 | D81: 0.51
A82: 2011.12.25.00.48.05 | B82: 293.9 | C82: 293.8 | D82: 0.51
A83: 2011.12.25.00.48.41 | B83: 293.9 | C83: 293.8 | D83: 0.51
A84: 2011.12.25.00.49.17 | B84: 293.9 | C84: 293.8 | D84: 0.51
A85: 2011.12.25.00.49.53 | B85: 293.9 | C85: 293.8 | D85: 0.51
A86: 2011.12.25.00.50.29 | B86: 294 | C86: 293.8 | D86: 0.51
A87: 2011.12.25.00.51.05 | B87: 293.9 | C87: 293.8 | D87: 0.51
A88: 2011.12.25.00.51.41 | B88: 293.9 | C88: 293.8 | D88: 0.51
A89: 2011.12.25.00.52.17 | B89: 293.9 | C89: 293.7 | D89: 0.51
A90: 2011.12.25.00.52.53 | B90: 293.9 | C90: 293.8 | D90: 0.51
A91: 2011.12.25.00.53.29 | B91: 293.9 | C91: 293.8 | D91: 0.51
A92: 2011.12.25.00.54.05 | B92: 293.9 | C92: 293.8 | D92: 0.51
A93: 2011.12.25.00.54.42 | B93: 293.8 | C93: 293.7 | D93: 0.51
A94: 2011.12.25.00.55.18 | B94: 293.9 | C94: 293.8 | D94: 0.51
A95: 2011.12.25.00.55.54 | B95: 293.9 | C95: 293.8 | D95: 0.51
A96: 2011.12.25.00.56.30 | B96: 293.9 | C96: 293.8 | D96: 0.51
A97: 2011.12.25.00.57.06 | B97: 294 | C97: 293.6 | D97: 0.51
A98: 2011.12.25.00.57.42 | B98: 293.8 | C98: 293.7 | D98: 0.51
A99: 2011.12.25.00.58.18 | B99: 293.9 | C99: 293.8 | D99: 0.51
A100: 2011.12.25.00.58.54 | B100: 293.9 | C100: 293.8 | D100: 0.51
A101: 2011.12.25.00.59.30 | B101: 293.9 | C101: 293.8 | D101: 0.51
A102: 2011.12.25.01.00.06 | B102: 294 | C102: 293.8 | D102: 0.51
A103: 2011.12.25.01.00.42 | B103: 293.9 | C103: 293.8 | D103: 0.51
A104: 2011.12.25.01.01.18 | B104: 293.9 | C104: 293.8 | D104: 0.51
A105: 2011.12.25.01.01.54 | B105: 293.9 | C105: 293.7 | D105: 0.51
A106: 2011.12.25.01.02.30 | B106: 293.9 | C106: 293.8 | D106: 0.51
A107: 2011.12.25.01.03.06 | B107: 293.9 | C107: 293.8 | D107: 0.51
A108: 2011.12.25.01.03.42 | B108: 293.9 | C108: 293.8 | D108: 0.51
A109: 2011.12.25.01.04.18 | B109: 293.9 | C109: 293.7 | D109: 0.51
A110: 2011.12.25.01.04.54 | B110: 293.9 | C110: 293.7 | D110: 0.51
A111: 2011.12.25.01.05.30 | B111: 293.8 | C111: 293.7 | D111: 0.51
A112: 2011.12.25.01.06.06 | B112: 293.9 | C112: 293.8 | D112: 0.51
A113: 2011.12.25.01.06.42 | B113: 294 | C113: 293.8 | D113: 0.51
A114: 2011.12.25.01.07.18 | B114: 293.9 | C114: 293.8 | D114: 0.51
A115: 2011.12.25.01.07.54 | B115: 293.9 | C115: 293.7 | D115: 0.51
A116: 2011.12.25.01.08.30 | B116: 293.9 | C116: 293.8 | D116: 0.51
A117: 2011.12.25.01.09.06 | B117: 293.9 | C117: 293.8 | D117: 0.51
A118: 2011.12.25.01.09.42 | B118: 294 | C118: 293.8 | D118: 0.51
A119: 2011.12.25.01.10.18 | B119: 293.9 | C119: 293.8 | D119: 0.51
A120: 2011.12.25.01.10.54 | B120: 293.9 | C120: 293.8 | D120: 0.51
A121: 2011.12.25.01.11.30 | B121: 293.9 | C121: 293.7 | D121: 0.51
A122: 2011.12.25.01.12.06 | B122: 293.9 | C122: 293.7 | D122: 0.51
A123: 2011.12.25.01.12.42 | B123: 293.9 | C123: 293.8 | D123: 0.51
A124: 2011.12.25.01.13.18 | B124: 293.9 | C124: 293.8 | D124: 0.51
A125: 2011.12.25.01.13.54 | B125: 293.9 | C125: 293.7 | D125: 0.51
A126: 2011.12.25.01.14.30 | B126: 293.9 | C126: 293.7 | D126: 0.51
A127: 2011.12.25.01.15.06 | B127: 293.9 | C127: 293.7 | D127: 0.51
A128: 2011.12.25.01.15.42 | B128: 293.8 | C128: 293.7 | D128: 0.51
A129: 2011.12.25.01.16.18 | B129: 293.9 | C129: 293.7 | D129: 0.51
A130: 2011.12.25.01.16.54 | B130: 293.9 | C130: 293.6 | D130: 0.51
A131: 2011.12.25.01.17.30 | B131: 293.9 | C131: 293.7 | D131: 0.51
A132: 2011.12.25.01.18.06 | B132: 293.9 | C132: 293.7 | D132: 0.51
A133: 2011.12.25.01.18.42 | B133: 293.9 | C133: 293.8 | D133: 0.51
A134: 2011.12.25.01.19.18 | B134: 294 | C134: 293.8 | D134: 0.51
A135: 2011.12.25.01.19.54 | B135: 293.9 | C135: 293.7 | D135: 0.51
A136: 2011.12.25.01.20.30 | B136: 293.8 | C136: 293.7 | D136: 0.51
A137: 2011.12.25.01.21.06 | B137: 293.9 | C137: 293.7 | D137: 0.51
A138: 2011.12.25.01.21.42 | B138: 293.9 | C138: 293.8 | D138: 0.51
A139: 2011.12.25.01.22.18 | B139: 294 | C139: 293.7 | D139: 0.51
A140: 2011.12.25.01.22.54 | B140: 293.8 | C140: 293.7 | D140: 0.51
A141: 2011.12.25.01.23.30 | B141: 293.9 | C141: 293.7 | D141: 0.51
A142: 2011.12.25.01.24.06 | B142: 293.9 | C142: 293.7 | D142: 0.51
A143: 2011.12.25.01.24.42 | B143: 293.9 | C143: 293.7 | D143: 0.51
A144: 2011.12.25.01.25.18 | B144: 293.9 | C144: 293.8 | D144: 0.51
A145: 2011.12.25.01.25.54 | B145: 293.9 | C145: 293.7 | D145: 0.51
A146: 2011.12.25.01.26.30 | B146: 293.9 | C146: 293.6 | D146: 0.51
A147: 2011.12.25.01.27.06 | B147: 293.9 | C147: 293.7 | D147: 0.51
A148: 2011.12.25.01.27.42 | B148: 293.8 | C148: 293.7 | D148: 0.51
A149: 2011.12.25.01.28.18 | B149: 293.9 | C149: 293.7 | D149: 0.51
A150: 2011.12.25.01.28.54 | B150: 293.9 | C150: 293.7 | D150: 0.51
A151: 2011.12.25.01.29.30 | B151: 293.8 | C151: 293.6 | D151: 0.51
A152: 2011.12.25.01.30.06 | B152: 293.9 | C152: 293.7 | D152: 0.51
A153: 2011.12.25.01.30.42 | B153: 293.8 | C153: 293.7 | D153: 0.51
A154: 2011.12.25.01.31.18 | B154: 293.8 | C154: 293.7 | D154: 0.51
A155: 2011.12.25.01.31.54 | B155: 293.9 | C155: 293.7 | D155: 0.51
A156: 2011.12.25.01.32.30 | B156: 293.9 | C156: 293.7 | D156: 0.51
A157: 2011.12.25.01.33.06 | B157: 293.9 | C157: 293.7 | D157: 0.51
A158: 2011.12.25.01.33.42 | B158: 293.9 | C158: 293.7 | D158: 0.51
A159: 2011.12.25.01.34.18 | B159: 293.9 | C159: 293.7 | D159: 0.51
A160: 2011.12.25.01.34.54 | B160: 293.8 | C160: 293.7 | D160: 0.51
A161: 2011.12.25.01.35.30 | B161: 293.9 | C161: 293.6 | D161: 0.51
A162: 2011.12.25.01.36.06 | B162: 293.9 | C162: 293.7 | D162: 0.51
A163: 2011.12.25.01.36.42 | B163: 293.9 | C163: 293.7 | D163: 0.51
A164: 2011.12.25.01.37.18 | B164: 293.9 | C164: 293.7 | D164: 0.51
A165: 2011.12.25.01.37.54 | B165: 293.9 | C165: 293.7 | D165: 0.51
A166: 2011.12.25.01.38.31 | B166: 293.8 | C166: 293.8 | D166: 0.51
A167: 2011.12.25.01.39.07 | B167: 293.9 | C167: 293.7 | D167: 0.51
A168: 2011.12.25.01.39.43 | B168: 293.9 | C168: 293.7 | D168: 0.51
A169: 2011.12.25.01.40.19 | B169: 293.8 | C169: 293.7 | D169: 0.51
A170: 2011.12.25.01.40.55 | B170: 293.9 | C170: 293.7 | D170: 0.51
A171: 2011.12.25.01.41.31 | B171: 293.8 | C171: 293.8 | D171: 0.51
A172: 2011.12.25.01.42.07 | B172: 293.8 | C172: 293.7 | D172: 0.51
A173: 2011.12.25.01.42.43 | B173: 293.8 | C173: 293.7 | D173: 0.51
A174: 2011.12.25.01.43.19 | B174: 293.9 | C174: 293.7 | D174: 0.51
A175: 2011.12.25.01.43.55 | B175: 294 | C175: 293.6 | D175: 0.51
A176: 2011.12.25.01.44.31 | B176: 293.8 | C176: 293.8 | D176: 0.51
A177: 2011.12.25.01.45.07 | B177: 293.9 | C177: 293.7 | D177: 0.51
A178: 2011.12.25.01.45.43 | B178: 293.9 | C178: 293.7 | D178: 0.51
A179: 2011.12.25.01.46.19 | B179: 293.8 | C179: 293.7 | D179: 0.51
A180: 2011.12.25.01.46.55 | B180: 293.9 | C180: 293.7 | D180: 0.51
A181: 2011.12.25.01.47.31 | B181: 293.8 | C181: 293.7 | D181: 0.51
A182: 2011.12.25.01.48.07 | B182: 293.8 | C182: 293.6 | D182: 0.51
A183: 2011.12.25.01.48.43 | B183: 293.9 | C183: 293.7 | D183: 0.51
A184: 2011.12.25.01.49.19 | B184: 293.9 | C184: 293.7 | D184: 0.51
A185: 2011.12.25.01.49.55 | B185: 293.8 | C185: 293.7 | D185: 0.51
A186: 2011.12.25.01.50.31 | B186: 293.9 | C186: 293.7 | D186: 0.51
A187: 2011.12.25.01.51.07 | B187: 293.8 | C187: 293.7 | D187: 0.51
A188: 2011.12.25.01.51.43 | B188: 293.8 | C188: 293.7 | D188: 0.51
A189: 2011.12.25.01.52.19 | B189: 293.9 | C189: 293.6 | D189: 0.51
A190: 2011.12.25.01.52.55 | B190: 293.8 | C190: 293.8 | D190: 0.51
A191: 2011.12.25.01.53.31 | B191: 293.9 | C191: 293.7 | D191: 0.51
A192: 2011.12.25.01.54.07 | B192: 293.8 | C192: 293.6 | D192: 0.51
A193: 2011.12.25.01.54.43 | B193: 293.7 | C193: 293.7 | D193: 0.51
A194: 2011.12.25.01.55.19 | B194: 293.9 | C194: 293.7 | D194: 0.51
A195: 2011.12.25.01.55.55 | B195: 293.8 | C195: 293.7 | D195: 0.51
A196: 2011.12.25.01.56.31 | B196: 293.9 | C196: 293.6 | D196: 0.51
A197: 2011.12.25.01.57.07 | B197: 293.9 | C197: 293.7 | D197: 0.51
A198: 2011.12.25.01.57.43 | B198: 293.8 | C198: 293.7 | D198: 0.51
A199: 2011.12.25.01.58.19 | B199: 293.8 | C199: 293.7 | D199: 0.51
A200: 2011.12.25.01.58.55 | B200: 293.8 | C200: 293.6 | D200: 0.51
... 2200 more rows

Sheet Sheet2

Sheet Sheet3
